bitfinex/quotes_ETHUSD_20240827
["timestamp","ask_amount","ask_price","bid_price","bid_amount"]
[1724802731012,0.55,2463.3,2462.7,2.4894]
[1724802731172,0.63350427,2463.3,2462.7,2.4894]
[1724802731374,0.12088674,2463.2,2462.7,2.4894]
[1724802731583,0.55,2463.1,2462.7,2.4894]
[1724802731896,0.12080259,2463.0,2462.7,2.4894]
[1724802732407,0.55,2462.9,2462.7,2.4894]
[1724802732716,0.12079057,2462.8,2462.7,3.47534]
[1724802732917,7.14270427,2463.6,2462.7,3.47534]
[1724802733126,4.17992427,2463.5,2462.7,2.4894]
[1724802733295,3.0,2463.4,2462.7,2.4894]
[1724802733711,0.12063427,2463.3,2462.7,2.4894]
[1724802734130,0.55,2463.2,2462.8,0.08119532]
[1724802734328,0.12053811,2463.1,2462.8,0.08119532]
[1724802737427,0.12053811,2463.1,2462.7,2.4894]
[1724802737949,0.12053811,2463.1,2462.9,2.2948]
[1724802738258,4.14212427,2463.9,2463.1,2.2948]
[1724802738459,2.3819,2464.4,2463.3,2.2948]
[1724802738674,0.12053811,2463.8,2463.5,2.2948]
[1724802738952,4.05737,2464.7,2463.4,7.45116626]
[1724802738953,4.05737,2464.7,2463.7,2.2948]
[1724802739118,0.52627511,2464.6,2463.8,0.08116313]
[1724802739320,4.14113427,2464.5,2463.8,0.08116313]
[1724802739521,4.14113427,2464.5,2463.7,2.2948]
[1724802739819,4.63310524,2464.4,2463.7,2.2948]
[1724802740023,0.63350427,2464.3,2463.7,2.2948]
[1724802740331,0.08350427,2464.2,2463.7,2.2948]
[1724802740541,0.12053811,2464.1,2463.8,0.078848]
[1724802740854,0.55,2464.3,2463.8,0.078848]
[1724802741060,0.55,2464.3,2463.7,2.2948]
[1724802741244,0.12053811,2464.2,2463.7,2.2948]
[1724802741604,4.14128427,2464.4,2463.7,2.2948]
[1724802741906,3.0,2464.3,2463.7,2.2948]
[1724802742058,0.20404238,2464.2,2463.7,2.2948]
[1724802742668,0.20404238,2464.2,2462.4,0.84744481]
[1724802742669,4.05905,2463.7,2462.9,9.7536]
[1724802742997,4.44528927,2463.6,2462.9,9.7536]
[1724802743157,3.67053811,2463.6,2462.9,9.7536]
[1724802743362,3.0,2463.5,2462.9,9.7536]
[1724802743707,0.67053811,2463.4,2462.9,9.7536]
[1724802744380,0.67053811,2463.4,2462.9,10.72896]
[1724802745096,0.12053811,2463.4,2462.9,10.72896]
[1724802745311,4.05854,2464.0,2463.0,2.2833]
[1724802745312,3.0,2463.9,2463.0,2.2833]
[1724802745612,0.08350427,2464.0,2463.1,1.062866]
[1724802745613,0.67095884,2463.8,2463.1,1.062866]
[1724802747335,0.12095884,2463.8,2463.2,2.3531]
[1724802747526,0.52493299,2464.7,2463.3,2.43426553]
[1724802747807,0.12095884,2464.6,2463.6,2.3324]
[1724802748010,0.12095884,2464.6,2463.8,2.3324]
[1724802748212,4.14062427,2464.9,2463.9,0.08115083]
[1724802748213,4.05712,2464.9,2463.9,0.08115083]
[1724802748401,4.05687,2465.0,2464.0,2.3324]
[1724802748402,0.12095884,2464.5,2464.0,2.3324]
[1724802748598,8.11371,2465.0,2464.1,0.08115092]
[1724802748798,0.12095884,2464.4,2464.1,0.08115092]
[1724802749114,0.12095884,2464.3,2464.1,0.08115092]
[1724802749280,0.12095884,2464.3,2463.1,2.4234]
[1724802749281,4.05885,2463.8,2463.1,2.4234]
[1724802749484,2.9611,2464.2,2463.1,2.4234]
[1724802749485,4.05736739,2463.7,2463.1,2.4234]
[1724802749684,3.0,2463.7,2463.1,2.4234]
[1724802749892,0.67095884,2463.6,2463.1,2.4234]
[1724802750093,4.05938,2463.5,2463.1,2.4234]
[1724802750294,4.05944,2463.4,2462.7,2.4234]
[1724802750505,0.55,2463.3,2462.7,2.4234]
[1724802750874,0.12095884,2463.2,2462.7,2.4234]
[1724802751074,0.55,2463.4,2462.7,2.4234]
[1724802751323,0.12095884,2463.3,2462.7,2.66574]
[1724802753119,0.12095884,2463.3,2462.8,2.3055]
[1724802753328,3.0,2463.9,2462.8,2.38442257]
[1724802753483,0.12095884,2463.2,2463.0,2.4187]
[1724802753819,4.05788,2464.4,2463.1,2.49758025]
[1724802754017,4.05797,2464.3,2463.1,2.49758025]
[1724802754318,4.05815,2464.2,2463.1,2.49758025]
[1724802754533,0.82370788,2464.1,2463.2,0.24975803]
[1724802755018,0.12136757,2464.0,2463.2,0.24975803]
[1724802755221,0.12136757,2464.0,2463.1,2.4187]
[1724802755586,0.12136757,2464.0,2463.2,0.07885942]
[1724802756222,0.12136757,2464.0,2463.1,2.4187]
[1724802756405,2.66213203,2464.0,2463.1,2.4187]
[1724802756611,4.05903,2463.7,2463.1,2.4187]
[1724802756781,1.05738806,2463.6,2463.1,2.4187]
[1724802757004,3.12200455,2463.6,2463.1,2.4187]
[1724802757408,3.0,2463.5,2463.1,2.4187]
[1724802757608,0.12200455,2463.6,2463.2,0.07889271]
[1724802757815,3.0,2463.8,2463.2,0.07889271]
[1724802758030,0.12200455,2463.5,2463.2,0.07889271]
[1724802758335,0.12200455,2463.4,2463.1,2.4187]
[1724802758621,3.0,2463.8,2463.2,0.07888548]
[1724802758784,4.05806,2464.3,2463.3,2.3471]
[1724802758988,3.955806,2464.2,2463.4,0.0788556]
[1724802759286,8.11540959,2464.2,2463.4,0.0788556]
[1724802760024,12.17359959,2464.2,2463.4,0.0788556]
[1724802760429,4.05726959,2464.2,2463.4,0.0788556]
[1724802760728,3.955806,2464.2,2463.5,2.2899]
[1724802760892,3.955806,2464.2,2463.6,0.07885886]
[1724802761726,2.4408,2464.1,2463.3,7.37]
[1724802761928,4.05885,2463.8,2463.3,7.37]
[1724802762088,3.55,2463.7,2463.2,2.4667]
[1724802762950,3.0,2463.7,2463.2,2.4667]
[1724802763097,4.55543888,2464.1,2463.3,0.24667]
[1724802763300,4.0588,2463.8,2463.2,2.4667]
[1724802763598,0.65148172,2463.7,2463.2,2.4667]
[1724802763942,3.65148172,2463.7,2463.2,2.4667]
[1724802764735,3.55,2463.7,2463.2,2.4667]
[1724802765204,3.65147966,2463.7,2463.2,2.4667]
[1724802765527,0.77102797,2463.6,2463.2,2.4667]
[1724802766299,3.0,2463.8,2463.3,0.07889586]
[1724802766610,3.0,2464.1,2463.4,2.3094]
[1724802766844,4.05787,2464.4,2463.6,2.3094]
[1724802767134,8.11579,2464.4,2463.7,0.07885324]
[1724802767339,0.811579,2464.3,2463.7,0.07885324]
[1724802767697,4.86869187,2464.3,2463.7,0.07885324]
[1724802767897,3.0,2464.2,2463.7,0.07885324]
[1724802768093,3.12155989,2464.2,2463.7,0.07885324]
[1724802768541,3.12155989,2464.2,2463.6,2.3094]
[1724802768542,0.55,2464.1,2463.6,2.3094]
[1724802768700,0.12174015,2464.0,2463.6,2.3094]
[1724802769239,0.12174015,2464.0,2463.1,2.3981]
[1724802769240,0.10146202,2463.9,2463.1,2.3981]
[1724802769533,4.18058822,2463.8,2463.1,2.47699724]
[1724802769833,3.55,2463.7,2463.1,2.47699724]
[1724802770002,3.55,2463.7,2463.1,2.3981]
[1724802770331,0.12178822,2463.6,2463.1,2.3981]
[1724802770532,0.12178822,2463.6,2463.1,2.4769973]
[1724802771300,0.12178822,2463.6,2463.1,3.46169703]
[1724802772240,0.12178822,2463.6,2463.1,3.38279973]
[1724802772615,0.12178822,2463.6,2463.1,3.4616972]
[1724802773206,0.12178822,2463.6,2463.1,3.38279973]
[1724802773605,0.12178822,2463.6,2463.1,3.46169729]
[1724802776954,0.12178822,2463.6,2463.1,2.3981]
[1724802777625,3.12178822,2463.6,2463.1,2.3981]
[1724802777834,7.18091822,2463.6,2463.1,2.3981]
[1724802778150,3.12178822,2463.6,2463.1,2.3981]
[1724802778844,0.12178822,2463.6,2463.1,2.3981]
[1724802781347,5.06561533,2463.6,2463.1,2.3981]
[1724802781647,7.60929,2463.5,2463.1,2.3981]
[1724802782038,0.22285881,2463.4,2463.1,2.3981]
[1724802782208,0.55,2463.3,2463.1,2.3981]
[1724802782609,0.12125939,2463.2,2463.1,2.3981]
[1724802782852,0.67125939,2463.2,2462.7,7.37]
[1724802783147,0.67125939,2463.1,2462.8,2.3196]
[1724802788165,0.12125939,2463.1,2462.9,0.07894344]
[1724802788317,5.16607974,2463.9,2462.9,0.07894344]
[1724802788318,2.6622,2464.1,2463.0,2.2983]
[1724802788517,2.6622,2464.1,2462.5,12.42]
[1724802788518,0.18848799,2464.1,2463.2,2.2983]
[1724802788747,0.18848799,2464.1,2463.1,7.68662082]
[1724802788748,0.10147456,2464.1,2463.3,0.07888375]
[1724802788983,0.10147456,2464.1,2463.4,2.2983]
[1724802788984,0.80251204,2464.1,2463.4,2.2983]
[1724802789162,0.70103748,2464.1,2463.5,0.07888423]
[1724802789433,2.2552,2464.6,2463.6,2.2983]
[1724802789434,4.0577,2464.5,2463.6,2.2983]
[1724802789618,4.0577,2464.5,2463.7,2.43764513]
[1724802789815,0.10145847,2464.4,2463.7,2.3588]
[1724802790021,4.05795,2464.3,2463.7,2.3588]
[1724802790370,4.15956858,2464.2,2463.7,2.3588]
[1724802790556,1.42283885,2464.1,2463.7,2.3588]
[1724802790857,4.15999365,2464.0,2463.2,2.3588]
[1724802791058,3.55,2463.9,2463.2,2.3588]
[1724802791259,4.86475795,2463.9,2463.2,2.3588]
[1724802791451,8.92348795,2463.9,2463.2,2.3588]
[1724802791651,4.05879,2463.8,2463.2,2.3588]
[1724802791849,7.71041935,2463.7,2463.2,2.3588]
[1724802792071,4.05922,2463.6,2463.2,2.3588]
[1724802792275,1.17696393,2463.5,2463.2,2.3588]
[1724802792476,0.55,2463.4,2463.2,2.3588]
[1724802793367,0.55,2463.4,2462.3,2.3588]
[1724802798402,0.12080258,2463.3,2462.3,2.3588]
[1724802798557,0.22229606,2463.3,2462.3,2.3588]
[1724802798755,0.12080258,2463.3,2462.4,0.97288]
[1724802799457,0.12080258,2463.3,2462.5,2.3651]
[1724802801254,3.12080258,2463.3,2462.5,2.3651]
[1724802802299,0.10149519,2463.2,2462.5,2.3651]
[1724802802465,0.10149519,2463.2,2462.5,2.698898]
[1724802802794,0.12093485,2463.1,2462.5,2.698898]
[1724802804785,0.12093485,2463.1,2462.5,2.3651]
[1724802811963,3.29292395,2463.3,2462.5,2.3651]
[1724802812164,0.12016536,2463.0,2462.5,2.3651]
[1724802812360,0.10149993,2463.2,2462.5,2.3651]
[1724802812583,0.12016536,2462.9,2462.5,2.3651]
[1724802812785,0.55,2463.1,2462.5,2.60161]
[1724802812995,0.12016536,2462.8,2462.5,2.60161]
[1724802813204,0.55,2463.1,2462.5,2.60161]
[1724802813387,0.12016536,2462.7,2462.5,2.60161]
[1724802813589,0.55,2463.1,2462.5,2.60161]
[1724802813791,0.12016536,2462.6,2462.5,2.60161]
[1724802813993,0.55,2463.1,2462.5,2.60161]
[1724802814178,0.12016536,2462.6,2462.5,2.3651]
[1724802814376,0.55,2463.1,2462.5,2.3651]
[1724802814564,0.12016536,2462.6,2462.5,2.3651]
[1724802814766,0.55,2463.1,2462.5,2.3651]
[1724802815013,0.12020143,2462.6,2462.5,2.3651]
[1724802815180,1.34025239,2463.1,2462.5,2.3651]
[1724802815504,0.12020143,2462.6,2462.5,2.3651]
[1724802815674,0.55,2463.1,2462.5,2.3651]
[1724802816070,0.55,2463.1,2462.2,7.37]
[1724802816071,2.57562929,2463.0,2462.2,2.3732]
[1724802816305,2.4555,2462.5,2461.4,3.22064481]
[1724802816517,2.55703309,2462.5,2461.4,2.3732]
[1724802816717,0.67002106,2462.4,2461.4,2.3732]
[1724802817006,3.12002106,2462.4,2461.6,2.4569]
[1724802817177,3.12002106,2462.4,2461.7,7.05784738]
[1724802817178,0.12002106,2462.4,2461.7,7.05784738]
[1724802817381,2.4397,2463.0,2461.9,2.4569]
[1724802817382,3.0,2462.9,2461.9,2.4569]
[1724802817585,3.0,2462.9,2462.0,2.53586682]
[1724802817586,0.11515582,2462.3,2462.0,2.53586682]
[1724802817768,3.55,2462.9,2462.2,2.4569]
[1724802818120,3.55,2462.9,2462.3,0.07896601]
[1724802818410,0.55,2462.9,2462.3,0.35791128]
[1724802818612,0.55,2463.0,2462.3,0.35791128]
[1724802818766,0.55,2463.0,2462.3,0.07896601]
[1724802818971,3.0,2463.1,2462.4,0.07896683]
[1724802819281,5.4676,2463.5,2462.5,2.4328]
[1724802819607,10.44023113,2463.5,2462.6,0.07894517]
[1724802820889,0.55,2463.4,2462.6,0.07894517]
[1724802821099,0.69309411,2463.3,2462.6,0.07894517]
[1724802821327,0.55,2463.2,2462.6,0.07894517]
[1724802821927,0.65150024,2463.2,2462.6,0.0789454]
[1724802822212,0.65150024,2463.2,2462.5,2.4328]
[1724802822399,0.43445944,2463.1,2462.5,2.4328]
[1724802822600,3.43445944,2463.1,2462.5,2.4328]
[1724802822815,0.55,2463.0,2462.5,2.4328]
[1724802823298,4.71168583,2463.0,2462.1,2.3356]
[1724802823509,3.0,2462.9,2462.2,0.97056]
[1724802823730,0.55,2462.8,2462.1,2.3356]
[1724802824823,0.65151594,2462.8,2462.1,2.3356]
[1724802824994,3.55,2462.8,2462.1,2.3356]
[1724802825190,3.65151603,2462.8,2462.1,2.3356]
[1724802825392,4.52892709,2462.8,2462.1,2.3356]
[1724802825597,6.63931609,2462.7,2461.6,2.3356]
[1724802825899,6.63931609,2462.7,2461.7,0.07902016]
[1724802825900,3.10153139,2462.6,2461.7,0.07902016]
[1724802826229,0.11538471,2462.5,2461.7,0.07902016]
[1724802826592,0.55,2462.4,2461.8,2.3356]
[1724802826793,0.55,2462.4,2461.9,0.07902]
[1724802827088,0.11538471,2462.3,2461.9,0.320482]
[1724802827394,3.10151774,2462.9,2461.9,0.320482]
[1724802827603,0.11538471,2462.2,2461.9,0.320482]
[1724802827812,0.55,2462.8,2461.9,0.320482]
[1724802828019,0.11414394,2462.1,2461.9,0.320482]
[1724802828216,0.55,2462.8,2461.9,0.320482]
[1724802828424,0.11414394,2462.0,2461.9,0.320482]
[1724802828631,0.55,2462.8,2461.9,0.320482]
[1724802828840,0.11414394,2462.0,2461.9,0.241462]
[1724802829019,0.46153885,2462.7,2461.9,0.241462]
[1724802829237,0.11414394,2462.0,2461.9,0.241462]
[1724802829544,0.10151675,2462.7,2461.9,0.241462]
[1724802829845,7.14091443,2462.6,2461.8,2.3356]
[1724802830008,0.10152958,2462.5,2461.8,2.3356]
[1724802830350,0.55,2462.4,2461.8,2.3356]
[1724802830510,0.11426443,2462.4,2462.0,2.3301]
[1724802830844,2.4197,2463.3,2462.2,2.3301]
[1724802831054,2.4197,2463.3,2462.4,2.3301]
[1724802831354,2.4197,2463.3,2462.5,0.31984442]
[1724802831508,0.10149821,2463.2,2462.4,2.3301]
[1724802832207,8.22114821,2463.2,2462.4,2.3301]
[1724802832561,0.55,2463.1,2462.4,2.3301]
[1724802832709,0.55,2463.1,2462.5,0.07896772]
[1724802833803,0.55,2463.1,2462.5,0.31987449]
[1724802834239,0.55,2463.1,2462.5,0.24090677]
[1724802834441,0.55,2463.1,2462.4,2.3301]
[1724802837059,0.55,2463.1,2461.8,0.84744481]
[1724802837060,2.59310647,2463.0,2462.1,2.386]
[1724802837660,3.55,2462.9,2462.2,0.07899211]
[1724802838355,3.55,2462.9,2462.1,2.386]
[1724802838797,0.55,2462.9,2462.1,2.386]
[1724802840864,0.10151285,2462.8,2462.1,2.386]
[1724802841163,0.55,2462.7,2462.1,2.386]
[1724802841332,0.55,2462.7,2462.1,2.6246]
[1724802842036,0.65152357,2462.7,2462.1,2.386]
[1724802842522,3.65152357,2462.7,2462.1,2.386]
[1724802843194,0.1110449,2462.6,2462.1,2.386]
[1724802844975,0.65153001,2462.5,2462.1,2.386]
[1724802845277,1.54470047,2462.5,2462.1,2.386]
[1724802845465,1.44317046,2462.5,2462.1,2.386]
[1724802846377,0.66085197,2462.5,2462.1,2.386]
[1724802847715,0.11085197,2462.5,2462.1,2.386]
[1724802847917,0.11085197,2462.5,2462.2,0.07901688]
[1724802848216,0.11077959,2462.4,2462.2,0.07901688]
[1724802848408,3.10152426,2462.8,2462.2,0.07901688]
[1724802848585,0.11077959,2462.3,2462.2,0.07901688]
[1724802848784,0.55,2462.7,2462.2,0.07900335]
[1724802848986,0.11077959,2462.3,2462.2,2.52640335]
[1724802849290,0.11077959,2462.3,2462.2,2.77904369]
[1724802849634,4.05984,2463.2,2462.2,2.77904369]
[1724802849635,0.52493299,2463.9,2462.2,2.70004034]
[1724802849782,2.3688,2464.4,2462.8,2.4224]
[1724802850098,0.10145792,2464.6,2463.4,2.4224]
[1724802850279,0.10145792,2464.6,2463.6,2.4276]
[1724802850485,4.05704,2464.9,2463.0,7.48782894]
[1724802850486,6.5152,2465.1,2463.8,2.4276]
[1724802850688,6.5152,2465.1,2464.0,2.4276]
[1724802850921,6.5152,2465.1,2464.1,0.07879938]
[1724802851614,4.05603,2465.5,2464.3,2.4276]
[1724802851822,4.05603,2465.5,2464.4,0.07875252]
[1724802852161,0.50702328,2465.4,2464.5,2.4276]
[1724802852288,4.05673,2465.1,2464.5,2.4276]
[1724802852490,4.05648,2465.2,2463.6,2.4276]
[1724802852491,4.15826112,2465.0,2463.6,2.4276]
[1724802852790,4.05713,2464.8,2463.8,2.2502]
[1724802852992,0.41582611,2464.9,2463.8,2.2502]
[1724802852993,0.10143975,2464.7,2463.8,2.2502]
[1724802853194,0.10143975,2464.8,2463.8,2.2502]
[1724802853430,0.55,2464.7,2463.9,0.22502]
[1724802853725,0.10142549,2464.8,2464.0,2.3569]
[1724802853930,0.55883365,2464.8,2464.0,2.3569]
[1724802854102,4.61595365,2464.8,2464.0,2.3569]
[1724802854285,3.0,2464.7,2464.0,2.3569]
[1724802854487,4.15898925,2464.6,2463.3,2.3569]
[1724802854722,0.71589893,2464.5,2463.4,0.23569]
[1724802854921,0.65145885,2464.4,2463.4,0.23569]
[1724802855125,0.65145885,2464.4,2463.5,2.4862]
[1724802855686,3.1014576,2464.5,2463.5,2.4862]
[1724802855888,0.55,2464.4,2463.5,2.4862]
[1724802856197,0.55,2464.6,2463.5,2.4862]
[1724802856417,0.1014482,2464.5,2463.7,2.3394]
[1724802856739,0.55,2464.4,2463.7,2.3394]
[1724802857702,0.10145331,2464.3,2463.7,2.3394]
[1724802858226,0.11573323,2464.2,2463.7,2.598202]
[1724802858408,0.65145331,2464.4,2463.7,2.598202]
[1724802858606,0.11573323,2464.1,2463.7,2.3394]
[1724802858943,0.65145331,2464.4,2463.7,2.3394]
[1724802859292,8.23169075,2464.3,2463.7,2.3394]
[1724802859420,3.10146454,2464.2,2463.7,2.3394]
[1724802859621,4.7441204,2464.2,2463.7,2.3394]
[1724802859826,0.11549234,2464.1,2463.7,2.3394]
[1724802860019,8.11736,2463.9,2463.1,2.3332]
[1724802860337,0.10148841,2463.8,2463.1,2.3332]
[1724802860518,0.55,2463.7,2463.1,2.3332]
[1724802860705,0.10148842,2463.6,2463.1,2.3332]
[1724802860904,0.55,2463.5,2463.1,2.3332]
[1724802861100,0.66549234,2463.5,2463.1,2.3332]
[1724802862450,3.66549234,2463.5,2463.1,2.3332]
[1724802862652,0.11549234,2463.5,2463.1,2.3332]
[1724802862954,0.10148138,2463.7,2463.1,2.3332]
[1724802863152,0.11549234,2463.4,2463.1,2.3332]
[1724802863542,0.55,2463.6,2463.1,2.3332]
[1724802863726,0.11549234,2463.3,2463.1,2.3332]
[1724802863927,0.55,2463.6,2463.1,2.3332]
[1724802863928,0.55,2463.6,2463.1,2.56652]
[1724802864136,0.11549234,2463.2,2463.1,2.3332]
[1724802864340,0.65148148,2463.7,2463.1,2.3332]
[1724802864540,0.11549234,2463.2,2463.1,2.3332]
[1724802864742,0.55,2463.7,2463.1,2.3332]
[1724802864942,0.11437204,2463.2,2463.1,2.3332]
[1724802865117,0.65148186,2463.7,2463.1,2.3332]
[1724802865324,0.11437204,2463.2,2463.1,2.3332]
[1724802865846,0.55,2463.7,2463.1,2.3332]
[1724802865847,0.65148201,2463.7,2463.1,2.3332]
[1724802866018,0.11437204,2463.2,2463.1,2.3332]
[1724802866220,1.42249321,2463.7,2463.1,2.3332]
[1724802866415,0.11437204,2463.2,2463.1,2.3332]
[1724802866615,1.3210112,2463.7,2463.1,2.3332]
[1724802866616,0.651482,2463.7,2463.1,2.3332]
[1724802866921,0.11437204,2463.2,2463.1,2.3332]
[1724802867143,4.4224932,2463.7,2463.1,2.3332]
[1724802867328,0.11437204,2463.2,2463.1,2.3332]
[1724802867650,0.55,2463.7,2463.1,2.3332]
[1724802867817,0.11437204,2463.6,2463.2,0.07890059]
[1724802868019,0.11437204,2463.6,2463.3,2.3301]
[1724802868251,4.1599316,2464.0,2463.3,2.3301]
[1724802868456,4.48534673,2463.9,2463.3,2.3301]
[1724802868657,4.58681978,2463.9,2463.3,2.3301]
[1724802869372,0.11351657,2463.9,2463.3,2.3301]
[1724802869580,2.3731,2465.9,2463.7,2.2731]
[1724802869581,0.10982979,2463.8,2463.7,2.2731]
[1724802869863,4.05647,2465.2,2463.8,2.2731]
[1724802870163,4.26411745,2465.1,2463.8,2.2731]
[1724802870361,4.26411745,2465.1,2463.9,0.31027623]
[1724802870362,4.05709,2464.9,2463.9,0.31027623]
[1724802870517,0.10143916,2464.8,2463.9,0.31027623]
[1724802870723,0.10143916,2464.8,2464.0,2.4129]
[1724802871027,0.65596151,2464.7,2464.0,2.4129]
[1724802871227,0.65596151,2464.7,2464.1,0.27231762]
[1724802871728,0.65596151,2464.7,2464.0,2.4129]
[1724802871926,0.10143921,2464.6,2464.0,2.4129]
[1724802872140,0.55,2464.5,2464.0,2.4129]
[1724802872541,0.10596151,2464.4,2464.0,2.4129]
[1724802873718,0.10144007,2464.9,2464.0,2.4129]
[1724802873920,0.10596151,2464.3,2464.0,2.4129]
[1724802874117,4.0574,2464.7,2464.0,2.4129]
[1724802874118,0.55,2464.2,2464.0,2.4129]
[1724802874427,0.65596151,2464.2,2464.0,2.4129]
[1724802875866,0.65596151,2464.2,2463.7,2.3554]
[1724802876068,0.10596151,2464.2,2463.7,2.59094]
[1724802876360,0.10144687,2464.6,2463.7,2.59094]
[1724802876563,0.55,2464.5,2463.7,2.59094]
[1724802876751,0.1014525,2464.4,2463.7,2.59094]
[1724802876981,0.55,2464.3,2463.7,2.59094]
[1724802877273,0.10596151,2464.2,2463.7,2.59094]
[1724802878657,0.10596151,2464.2,2463.7,2.3554]
[1724802880967,0.10145701,2464.6,2463.7,2.3554]
[1724802881160,0.55,2464.5,2463.8,0.07882016]
[1724802881360,0.10144806,2464.4,2463.7,2.3554]
[1724802881584,0.55,2464.3,2463.7,2.3554]
[1724802881781,0.65766248,2464.3,2463.7,2.3554]
[1724802882498,0.10766248,2464.3,2463.7,2.3554]
[1724802882694,0.19255755,2464.7,2463.7,2.43421543]
[1724802882909,0.10766248,2464.6,2463.8,0.24342154]
[1724802883598,4.16515248,2464.6,2463.8,0.24342154]
[1724802883904,4.16515248,2464.6,2463.7,2.3554]
[1724802883905,7.05769,2464.5,2463.7,2.3554]
[1724802884193,0.10145808,2464.4,2463.7,2.3554]
[1724802884409,0.55,2464.3,2463.7,2.3554]
[1724802884608,0.65766248,2464.3,2463.7,2.3554]
[1724802885113,0.65766248,2464.3,2463.7,3.32794]
[1724802885315,0.65766248,2464.3,2463.7,2.3554]
[1724802885490,0.65766248,2464.3,2463.5,7.37]
[1724802885491,4.15966821,2464.2,2463.5,7.37]
[1724802885725,4.15966821,2464.2,2463.4,2.488]
[1724802885726,7.60828,2464.1,2463.4,2.488]
[1724802885904,0.20913752,2464.0,2463.4,2.488]
[1724802886106,0.55,2463.9,2463.4,2.488]
[1724802886414,0.10147504,2463.8,2463.4,2.488]
[1724802886614,0.55,2463.7,2463.4,2.488]
[1724802886917,0.10761424,2463.6,2463.4,2.488]
[1724802887289,3.65147504,2463.9,2463.4,2.488]
[1724802887482,0.10721619,2463.8,2463.2,7.37]
[1724802887683,0.55,2463.7,2463.2,7.37]
[1724802887919,0.55,2463.7,2463.2,8.377382]
[1724802888221,0.55,2463.8,2463.2,8.377382]
[1724802888375,0.10148209,2463.7,2463.2,8.377382]
[1724802888581,0.55,2463.6,2463.2,8.377382]
[1724802889118,0.10721619,2463.5,2463.2,8.377382]
[1724802890027,0.10721619,2463.5,2463.3,1.18702198]
[1724802890379,3.1014732,2464.1,2463.3,1.18702198]
[1724802890622,0.10656478,2463.4,2463.3,1.18702198]
[1724802890791,0.55,2464.0,2463.3,1.18702198]
[1724802891205,0.10656478,2463.9,2463.3,1.18702198]
[1724802891392,0.55,2463.8,2463.3,1.18702198]
[1724802891781,0.10656478,2463.7,2463.3,1.18702198]
[1724802891998,0.55,2463.9,2463.3,1.18702198]
[1724802892227,0.10656478,2463.6,2463.5,2.4294]
[1724802892441,0.10656478,2463.6,2463.5,2.50826425]
[1724802892604,0.29470607,2464.2,2463.5,2.50826425]
[1724802892940,0.10656478,2464.1,2463.5,2.50826425]
[1724802893100,4.16488478,2464.1,2463.5,2.4294]
[1724802893439,3.0,2464.0,2463.5,2.4294]
[1724802893599,0.10656478,2464.1,2463.6,0.07887312]
[1724802893806,6.53217,2464.6,2463.6,0.07887312]
[1724802894007,0.10667336,2464.0,2463.6,0.07887312]
[1724802894300,0.10667336,2463.9,2463.6,0.32970043]
[1724802894496,4.05773,2464.5,2463.6,0.32970043]
[1724802894700,0.1067578,2464.4,2463.6,0.32970043]
[1724802895339,0.55,2464.3,2463.6,0.32970043]
[1724802895916,0.1067578,2464.2,2463.6,0.32970043]
[1724802896602,4.05879,2463.8,2463.1,2.71182]
[1724802896904,2.45345838,2464.1,2463.1,2.4785]
[1724802896905,3.0,2463.7,2463.1,2.4785]
[1724802897105,0.10683018,2463.6,2463.1,2.4785]
[1724802897312,0.55,2463.5,2463.1,2.4785]
[1724802897548,0.10681812,2463.4,2463.1,2.4785]
[1724802897905,0.10681812,2463.4,2463.2,0.07891195]
[1724802898120,3.0,2463.8,2463.2,0.07891195]
[1724802898344,0.10681812,2463.3,2463.2,0.33465315]
[1724802898645,0.55,2463.7,2463.2,0.07891195]
[1724802898846,0.10635967,2463.3,2463.2,0.07891195]
[1724802899143,0.10635967,2463.3,2463.1,2.4785]
[1724802899344,3.0,2463.7,2463.2,0.07890144]
[1724802899556,0.10635967,2463.2,2463.1,2.4785]
[1724802899720,0.55,2463.6,2463.1,2.4785]
[1724802899920,0.10649239,2463.2,2463.1,2.4785]
[1724802900124,0.55,2463.6,2463.1,2.72635]
[1724802900348,0.55,2463.7,2463.2,0.07890072]
[1724802900548,0.65148165,2463.7,2463.1,2.4785]
[1724802900749,0.55,2463.7,2463.2,0.07890078]
[1724802901550,3.0,2463.9,2463.2,0.07890078]
[1724802901551,0.55,2463.8,2463.2,0.07890078]
[1724802901737,3.55,2463.8,2463.2,0.07890078]
[1724802902055,3.0,2463.7,2463.2,0.35942586]
[1724802902269,3.0,2463.7,2463.2,0.07890078]
[1724802902431,3.65147842,2463.8,2463.1,2.4785]
[1724802903195,0.10649239,2463.7,2463.2,0.07889307]
[1724802904759,0.10649239,2463.7,2463.1,2.4785]
[1724802905052,4.60912,2463.6,2463.1,2.4785]
[1724802905252,0.10149175,2463.5,2463.1,2.4785]
[1724802905463,0.10631143,2463.5,2463.1,2.55742498]
[1724802905616,0.10631143,2463.5,2462.3,6.63605994]
[1724802905617,0.10631143,2463.5,2463.2,0.33461769]
[1724802905817,4.05821,2464.2,2463.3,2.3942]
[1724802906053,4.05775,2464.5,2463.4,0.07887446]
[1724802906357,4.05775,2464.5,2463.5,2.2646]
[1724802906358,4.0578,2464.4,2463.5,2.2646]
[1724802906663,4.15945202,2464.3,2463.7,2.2646]
[1724802907344,3.0,2464.2,2463.7,2.2646]
[1724802907518,0.55,2464.1,2463.7,2.2646]
[1724802908663,1.377337,2464.6,2463.9,2.2766]
[1724802908978,4.05747,2464.6,2464.0,0.31437035]
[1724802909271,4.05747,2464.6,2464.0,0.07882508]
[1724802909558,4.0581,2464.3,2463.9,2.2766]
[1724802909763,0.10146008,2464.2,2463.9,2.2766]
[1724802910868,0.55,2464.1,2463.2,2.2766]
[1724802911065,0.10147243,2464.0,2463.2,2.2766]
[1724802911422,0.55,2463.9,2463.2,2.2766]
[1724802911646,0.55,2463.9,2463.4,2.2766]
[1724802912159,0.10147814,2463.8,2463.4,2.2766]
[1724802912721,0.65147819,2463.9,2463.4,2.2766]